[Event "55th Biel Festival MTO 2022"]
[Site "Biel"]
[Date "2022.07.15"]
[Round "2.21"]
[White "Sahithi Varshini M"]
[Black "Gagare Shardul"]
[Result "0-1"]
[ECO "C54"]
[WhiteElo "2312"]
[BlackElo "2514"]
[Annotator "ChessBase"]
[PlyCount "116"]
[EventDate "2022.07.13"]
[EventType "swiss"]
[EventCountry "SUI"]
[SourceTitle "playchess.com"]
[Source "ChessBase"]
[SourceQuality "1"]
[TimeControl "40/5400+30:1800+30"]

1. e4 {[%emt 0:00:29]} e5 {[%emt 0:09:47]} 2. Nf3 {[%emt 0:00:14]} Nc6 {[%emt 0:00:18]} 3. Bc4 {[%emt 0:00:13]} Bc5 {[%emt 0:00:56]} 4. c3 {[%emt 0:00:12]} Nf6 {[%emt 0:00:29]} 5. d3 {[%emt 0:00:08]} O-O {[%emt 0:02:48]} 6. O-O {[%emt 0:00:09]} h6 {[%emt 0:00:47]} 7. Re1 {[%emt 0:00:49]} d6 {[%emt 0:00:37]} 8. h3 {[%emt 0:00:09]} a6 {[%emt 0:01:01]} 9. a4 {[%emt 0:11:45]} Ba7 {[%emt 0:00:34]} 10. Bb3 {[%emt 0:11:10]} Be6 {[%emt 0:05:27]} 11. Bc2 {[%emt 0:01:19]} Re8 {[%emt 0:12:12]} 12. d4 {[%emt 0:05:53]} exd4 {[%emt 0:04:12]} 13. cxd4 {[%emt 0:02:33]} Nb4 {[%emt 0:00:31]} 14. Nc3 {[%emt 0:02:15]} Nxc2 {[%emt 0:03:43]} 15. Qxc2 {[%emt 0:00:06]} d5 {[%emt 0:06:25]} 16. e5 {[%emt 0:00:06]} Ne4 {[%emt 0:04:03]} 17. Be3 {[%emt 0:11:11]} Bf5 {[%emt 0:12:03]} 18. Rac1 {[%emt 0:23:18]} Re6 {[%emt 0:06:52]} 19. Ne2 {[%emt 0:00:05]} Rc6 {[%emt 0:03:45]} 20. Qb3 {[%emt 0:01:15]} Rb6 {[%emt 0:02:30]} 21. Qa3 {[%emt 0:03:38]} a5 {[%emt 0:05:09]} 22. Nd2 {[%emt 0:02:17]} c6 {[%emt 0:06:46]} 23. Nxe4 {[%emt 0:02:42]} Bxe4 {[%emt 0:03:18]} 24. Bd2 {[%emt 0:08:22]} Qf8 {[%emt 0:01:51]} 25. Qg3 {[%emt 0:00:34]} c5 {[%emt 0:01:18]} 26. dxc5 {[%emt 0:00:29]} Rg6 {[%emt 0:00:12]} 27. Qe3 {[%emt 0:00:47]} Rxg2+ {[%emt 0:00:11]} 28. Kf1 {[%emt 0:00:13]} Rh2 {[%emt 0:00:41]} 29. f3 {[%emt 0:04:09]} Bf5 {[%emt 0:01:45]} 30. Qf4 {[%emt 0:01:27]} Bxh3+ {[%emt 0:00:19]} 31. Kg1 {[%emt 0:00:04]} Rg2+ {[%emt 0:00:06]} 32. Kh1 {[%emt 0:00:03]} Rg6 {[%emt 0:02:57]} 33. Be3 {[%emt 0:01:30]} Bb8 {[%emt 0:01:20]} 34. Rg1 {[%emt 0:00:36]} Raa6 {[%emt 0:01:03]} 35. Qh2 {[%emt 0:00:16]} Bd7 {[%emt 0:00:31]} 36. Nc3 {[%emt 0:00:43]} Qe8 {[%emt 0:01:20]} 37. Bd4 {[%emt 0:01:04]} Raf6 {[%emt 0:00:22]} 38. f4 {[%emt 0:05:15]} Ra6 {[%emt 0:00:23]} 39. Qh5 {[%emt 0:00:14]} Qc8 {[%emt 0:00:31]} 40. Kh2 {[%emt 0:02:04]} Kh7 {[%emt 0:00:49]} 41. Nxd5 {[%emt 0:30:35]} Bg4 {[%emt 0:17:08]} 42. Nb6 {[%emt 0:00:00]} Qe6 {[%emt 0:02:34]} 43. Qh4 {[%emt 0:00:00]} Qf5 {[%emt 0:01:28]} 44. Rcf1 {[%emt 0:00:00]} Bc7 {[%emt 0:00:51]} 45. Rg3 {[%emt 0:00:00]} Bxb6 {[%emt 0:01:04]} 46. cxb6 {[%emt 0:00:00]} Ra8 {[%emt 0:01:04]} 47. Rf2 {[%emt 0:00:00]} Rc8 {[%emt 0:00:19]} 48. Rc3 {[%emt 0:00:00]} Rd8 {[%emt 0:02:24]} 49. Be3 {[%emt 0:00:00]} Rd1 {[%emt 0:03:09]} 50. Rc1 {[%emt 0:00:00]} Rxc1 {[%emt 0:02:06]} 51. Bxc1 {[%emt 0:00:00]} Qb1 {[%emt 0:00:24]} 52. Be3 {[%emt 0:00:00]} Bf5 {[%emt 0:01:26]} 53. Rg2 {[%emt 0:00:00]} Rxg2+ {[%emt 0:01:40]} 54. Kxg2 {[%emt 0:00:00]} Be4+ {[%emt 0:00:03]} 55. Kf2 {[%emt 0:00:00]} Qxb2+ {[%emt 0:00:39]} 56. Kf1 {[%emt 0:00:00]} Qa1+ {[%emt 0:00:14]} 57. Qe1 {[%emt 0:00:00]} Qxa4 {[%emt 0:00:05]} 58. Kg1 {[%emt 0:00:10]} Qb3 {[%emt 0:01:01]} 0-1

[Event "55th Biel Festival MTO 2022"]
[Site "Biel"]
[Date "2022.07.15"]
[Round "2.22"]
[White "Visakh N R"]
[Black "Monteverde, Jonathan"]
[Result "1-0"]
[ECO "A62"]
[WhiteElo "2503"]
[BlackElo "2091"]
[Annotator "ChessBase"]
[PlyCount "95"]
[EventDate "2022.07.13"]
[EventType "swiss"]
[EventCountry "SUI"]
[SourceTitle "playchess.com"]
[Source "ChessBase"]
[SourceQuality "1"]
[TimeControl "40/5400+30:1800+30"]

1. d4 {[%emt 0:02:40]} e6 {[%emt 0:00:09]} 2. c4 {[%emt 0:00:32]} Nf6 {[%emt 0:00:05]} 3. g3 {[%emt 0:02:32]} c5 {[%emt 0:00:24]} 4. d5 {[%emt 0:01:05]} exd5 {[%emt 0:00:13]} 5. cxd5 {[%emt 0:00:02]} d6 {[%emt 0:00:09]} 6. Nc3 {[%emt 0:00:19]} g6 {[%emt 0:00:14]} 7. Bg2 {[%emt 0:00:06]} Bg7 {[%emt 0:00:05]} 8. Nf3 {[%emt 0:00:05]} O-O {[%emt 0:00:06]} 9. O-O {[%emt 0:00:03]} Re8 {[%emt 0:00:04]} 10. Bf4 {[%emt 0:01:39]} Ne4 {[%emt 0:00:17]} 11. Nxe4 {[%emt 0:00:17]} Rxe4 {[%emt 0:00:05]} 12. Nd2 {[%emt 0:00:34]} Rxf4 {[%emt 0:00:12]} 13. gxf4 {[%emt 0:00:06]} Bxb2 {[%emt 0:00:06]} 14. Rb1 {[%emt 0:00:14]} Bg7 {[%emt 0:00:06]} 15. Nc4 {[%emt 0:02:59]} b5 {[%emt 0:09:43]} 16. Rxb5 {[%emt 0:00:07]} Ba6 {[%emt 0:00:07]} 17. Qa4 {[%emt 0:00:06]} Bxb5 {[%emt 0:00:26]} 18. Qxb5 {[%emt 0:00:03]} Bf8 {[%emt 0:29:08]} 19. Na5 {[%emt 0:08:07]} Qb6 {[%emt 0:18:06]} 20. Rb1 {[%emt 0:04:27]} Na6 {[%emt 0:00:21]} 21. Nc6 {[%emt 0:06:23]} Qxb5 {[%emt 0:02:33]} 22. Rxb5 {[%emt 0:00:03]} c4 {[%emt 0:00:09]} 23. Kf1 {[%emt 0:03:53]} Nc5 {[%emt 0:01:12]} 24. Bf3 {[%emt 0:37:36]} Re8 {[%emt 0:11:00]} 25. e3 {[%emt 0:01:13]} Bg7 {[%emt 0:03:47]} 26. Rb4 {[%emt 0:05:37]} c3 {[%emt 0:00:53]} 27. Bd1 {[%emt 0:00:18]} f5 {[%emt 0:09:27]} 28. Bc2 {[%emt 0:02:23]} Kf7 {[%emt 0:00:24]} 29. Ke2 {[%emt 0:00:11]} Rc8 {[%emt 0:01:40]} 30. a3 {[%emt 0:00:14]} a6 {[%emt 0:00:25]} 31. Rb6 {[%emt 0:00:26]} Bf6 {[%emt 0:01:40]} 32. Nb4 {[%emt 0:02:37]} a5 {[%emt 0:06:37]} 33. Nc6 {[%emt 0:01:32]} Ke8 {[%emt 0:01:40]} 34. Rb5 {[%emt 0:03:13]} Bd8 {[%emt 0:00:15]} 35. Rb1 {[%emt 0:03:06]} Ra8 {[%emt 0:01:07]} 36. f3 {[%emt 0:02:31]} Bc7 {[%emt 0:01:34]} 37. h4 {[%emt 0:01:08]} Ra6 {[%emt 0:00:26]} 38. Nd4 {[%emt 0:00:24]} Rb6 {[%emt 0:00:53]} 39. Nb5 {[%emt 0:00:07]} Kd7 {[%emt 0:00:21]} 40. a4 {[%emt 0:00:16]} Rb8 {[%emt 0:03:37]} 41. h5 {[%emt 0:31:44]} Rh8 {[%emt 0:10:19]} 42. Rh1 {[%emt 0:00:00]} gxh5 {[%emt 0:01:18]} 43. Rxh5 {[%emt 0:00:00]} Rg8 {[%emt 0:01:21]} 44. Rxh7+ {[%emt 0:00:00]} Kd8 {[%emt 0:00:08]} 45. Kf2 {[%emt 0:00:00]} Na6 {[%emt 0:01:13]} 46. Bxf5 {[%emt 0:00:00]} Nc5 {[%emt 0:01:35]} 47. Nxc7 {[%emt 0:00:00]} c2 {[%emt 0:00:53]} 48. Bxc2 {[%emt 0:00:00]} 1-0

[Event "55th Biel Festival MTO 2022"]
[Site "Biel"]
[Date "2022.07.15"]
[Round "2.23"]
[White "Kornitzky Tino"]
[Black "Bharath Subramaniyam H"]
[Result "0-1"]
[ECO "A50"]
[WhiteElo "2141"]
[BlackElo "2479"]
[Annotator "ChessBase"]
[PlyCount "84"]
[EventDate "2022.07.13"]
[EventType "swiss"]
[EventCountry "SUI"]
[SourceTitle "playchess.com"]
[Source "ChessBase"]
[SourceQuality "1"]
[TimeControl "40/5400+30:1800+30"]

1. d4 {[%emt 0:00:04]} Nf6 {[%emt 0:00:39]} 2. c4 {[%emt 0:00:08]} b6 {[%emt 0:00:00]} 3. Nc3 {[%emt 0:04:12]} Bb7 {[%emt 0:00:00]} 4. d5 {[%emt 0:00:55]} e6 {[%emt 0:00:00]} 5. g3 {[%emt 0:01:37]} Bb4 {[%emt 0:00:55]} 6. Bg2 {[%emt 0:01:14]} Bxc3+ {[%emt 0:06:00]} 7. bxc3 {[%emt 0:00:09]} O-O {[%emt 0:03:02]} 8. Nh3 {[%emt 0:06:46]} d6 {[%emt 0:02:09]} 9. O-O {[%emt 0:03:04]} Kh8 {[%emt 0:03:29]} 10. Re1 {[%emt 0:03:56]} Nbd7 {[%emt 0:00:30]} 11. Nf4 {[%emt 0:05:12]} Qe7 {[%emt 0:06:33]} 12. Nd3 {[%emt 0:15:35]} a5 {[%emt 0:11:56]} 13. e4 {[%emt 0:03:51]} Ba6 {[%emt 0:04:12]} 14. Ba3 {[%emt 0:10:34]} e5 {[%emt 0:07:03]} 15. Qa4 {[%emt 0:04:22]} Nc5 {[%emt 0:02:40]} 16. Bxc5 {[%emt 0:05:48]} bxc5 {[%emt 0:00:22]} 17. Rab1 {[%emt 0:10:48]} Qd7 {[%emt 0:07:05]} 18. Rb5 {[%emt 0:00:08]} Bxb5 {[%emt 0:02:40]} 19. cxb5 {[%emt 0:00:02]} Qe7 {[%emt 0:00:52]} 20. f4 {[%emt 0:06:29]} Nd7 {[%emt 0:04:54]} 21. Bh3 {[%emt 0:01:30]} Nb6 {[%emt 0:01:33]} 22. Qc2 {[%emt 0:01:00]} c4 {[%emt 0:00:22]} 23. Nf2 {[%emt 0:02:57]} exf4 {[%emt 0:00:08]} 24. gxf4 {[%emt 0:00:58]} Nxd5 {[%emt 0:00:21]} 25. Qd2 {[%emt 0:00:09]} Nf6 {[%emt 0:02:48]} 26. Qd4 {[%emt 0:03:50]} Nh5 {[%emt 0:01:13]} 27. e5 {[%emt 0:01:58]} Rad8 {[%emt 0:04:30]} 28. Qxc4 {[%emt 0:01:03]} dxe5 {[%emt 0:01:46]} 29. Rxe5 {[%emt 0:00:24]} Qh4 {[%emt 0:00:10]} 30. Bg4 {[%emt 0:00:45]} Nf6 {[%emt 0:00:41]} 31. Bf3 {[%emt 0:01:29]} Rd2 {[%emt 0:03:40]} 32. Qc5 {[%emt 0:00:51]} Nd7 {[%emt 0:01:09]} 33. Rh5 {[%emt 0:02:19]} Nxc5 {[%emt 0:00:30]} 34. Rxh4 {[%emt 0:00:08]} Rxa2 {[%emt 0:00:09]} 35. Bd5 {[%emt 0:00:48]} Ra1+ {[%emt 0:00:27]} 36. Kg2 {[%emt 0:00:08]} a4 {[%emt 0:00:07]} 37. Ng4 {[%emt 0:00:27]} Rd1 {[%emt 0:00:27]} 38. Bc4 {[%emt 0:00:35]} a3 {[%emt 0:00:20]} 39. Ne5 {[%emt 0:00:29]} a2 {[%emt 0:00:19]} 40. Bxf7 {[%emt 0:01:14]} Rg1+ {[%emt 0:00:14]} 41. Kxg1 {[%emt 0:30:26]} a1=Q+ {[%emt 0:30:17]} 42. Kg2 {[%emt 0:00:16]} Rxf7 {[%emt 0:00:09]} 0-1

[Event "55th Biel Festival MTO 2022"]
[Site "Biel"]
[Date "2022.07.15"]
[Round "2.26"]
[White "Petrov Martin"]
[Black "Akshit Kumar J"]
[Result "1-0"]
[ECO "D04"]
[WhiteElo "2534"]
[BlackElo "2103"]
[Annotator "ChessBase"]
[PlyCount "67"]
[EventDate "2022.07.13"]
[EventType "swiss"]
[EventCountry "SUI"]
[SourceTitle "playchess.com"]
[Source "ChessBase"]
[SourceQuality "1"]
[TimeControl "40/5400+30:1800+30"]

1. Nf3 {[%emt 0:00:04]} d5 {[%emt 0:04:55]} 2. d4 {[%emt 0:00:32]} Nf6 {[%emt 0:00:08]} 3. e3 {[%emt 0:00:07]} c6 {[%emt 0:02:46]} 4. b3 {[%emt 0:00:52]} Bg4 {[%emt 0:03:47]} 5. Be2 {[%emt 0:08:22]} Nbd7 {[%emt 0:01:38]} 6. O-O {[%emt 0:03:16]} e6 {[%emt 0:00:38]} 7. Bb2 {[%emt 0:01:14]} Bd6 {[%emt 0:04:26]} 8. Nbd2 {[%emt 0:00:24]} Qc7 {[%emt 0:07:42]} 9. h3 {[%emt 0:02:33]} Bh5 {[%emt 0:01:36]} 10. c4 {[%emt 0:02:55]} O-O {[%emt 0:01:51]} 11. c5 {[%emt 0:04:17]} Be7 {[%emt 0:00:20]} 12. b4 {[%emt 0:00:06]} Rfe8 {[%emt 0:08:15]} 13. Rc1 {[%emt 0:06:01]} Rad8 {[%emt 0:10:49]} 14. Re1 {[%emt 0:12:02]} Ne4 {[%emt 0:12:31]} 15. Nxe4 {[%emt 0:11:39]} dxe4 {[%emt 0:00:07]} 16. Nd2 {[%emt 0:00:03]} Bg6 {[%emt 0:01:46]} 17. Nc4 {[%emt 0:08:16]} e5 {[%emt 0:05:23]} 18. Qb3 {[%emt 0:02:30]} exd4 {[%emt 0:03:18]} 19. Bxd4 {[%emt 0:00:10]} Bf8 {[%emt 0:04:58]} 20. Red1 {[%emt 0:04:00]} Nf6 {[%emt 0:03:08]} 21. Qb2 {[%emt 0:03:54]} Nd5 {[%emt 0:05:27]} 22. Be5 {[%emt 0:02:47]} Qe7 {[%emt 0:00:38]} 23. Bg3 {[%emt 0:00:10]} Qg5 {[%emt 0:02:16]} 24. h4 {[%emt 0:00:59]} Qh6 {[%emt 0:02:04]} 25. Nd6 {[%emt 0:01:26]} Re7 {[%emt 0:02:39]} 26. b5 {[%emt 0:06:59]} Nf6 {[%emt 0:03:41]} 27. Rd4 {[%emt 0:03:18]} Red7 {[%emt 0:01:21]} 28. Rcd1 {[%emt 0:03:49]} Bh5 {[%emt 0:04:13]} 29. Nxb7 {[%emt 0:03:33]} Rxd4 {[%emt 0:01:51]} 30. exd4 {[%emt 0:00:04]} e3 {[%emt 0:00:36]} 31. Nxd8 {[%emt 0:00:37]} Ne4 {[%emt 0:00:25]} 32. Bxh5 {[%emt 0:00:39]} Qxh5 {[%emt 0:00:13]} 33. Re1 {[%emt 0:00:05]} exf2+ {[%emt 0:01:02]} 34. Bxf2 {[%emt 0:00:05]} 1-0

[Event "55th Biel Festival MTO 2022"]
[Site "Biel"]
[Date "2022.07.15"]
[Round "2.28"]
[White "Giacomini Hector"]
[Black "Hilby Craig"]
[Result "1/2-1/2"]
[ECO "D05"]
[WhiteElo "2091"]
[BlackElo "2422"]
[Annotator "ChessBase"]
[PlyCount "72"]
[EventDate "2022.07.13"]
[EventType "swiss"]
[EventCountry "SUI"]
[SourceTitle "playchess.com"]
[Source "ChessBase"]
[SourceQuality "1"]
[TimeControl "40/5400+30:1800+30"]

1. Nf3 {[%emt 0:01:12]} Nf6 {[%emt 0:00:12]} 2. e3 {[%emt 0:00:07]} e6 {[%emt 0:00:37]} 3. d4 {[%emt 0:00:09]} c5 {[%emt 0:00:11]} 4. Bd3 {[%emt 0:00:59]} d5 {[%emt 0:00:23]} 5. c3 {[%emt 0:00:12]} b6 {[%emt 0:01:48]} 6. Nbd2 {[%emt 0:01:24]} Bb7 {[%emt 0:00:15]} 7. O-O {[%emt 0:00:58]} Nbd7 {[%emt 0:00:15]} 8. Qe2 {[%emt 0:00:56]} Ne4 {[%emt 0:00:41]} 9. c4 {[%emt 0:02:16]} Bd6 {[%emt 0:03:20]} 10. cxd5 {[%emt 0:10:30]} exd5 {[%emt 0:00:09]} 11. Ba6 {[%emt 0:01:03]} Bxa6 {[%emt 0:11:33]} 12. Qxa6 {[%emt 0:00:06]} O-O {[%emt 0:00:11]} 13. b3 {[%emt 0:02:02]} Ndf6 {[%emt 0:02:14]} 14. Qd3 {[%emt 0:08:23]} a5 {[%emt 0:06:19]} 15. Bb2 {[%emt 0:04:09]} a4 {[%emt 0:02:55]} 16. dxc5 {[%emt 0:02:11]} bxc5 {[%emt 0:01:12]} 17. Rfd1 {[%emt 0:03:23]} Be7 {[%emt 0:22:50]} 18. Nxe4 {[%emt 0:06:24]} dxe4 {[%emt 0:00:28]} 19. Qc2 {[%emt 0:01:04]} Qc7 {[%emt 0:08:44]} 20. Be5 {[%emt 0:09:31]} Qa7 {[%emt 0:03:40]} 21. Nd2 {[%emt 0:02:20]} Ng4 {[%emt 0:00:14]} 22. Bg3 {[%emt 0:02:11]} f5 {[%emt 0:03:16]} 23. Rac1 {[%emt 0:03:21]} Nf6 {[%emt 0:03:08]} 24. Nc4 {[%emt 0:02:31]} axb3 {[%emt 0:00:24]} 25. axb3 {[%emt 0:00:09]} Qa2 {[%emt 0:00:35]} 26. Qc3 {[%emt 0:08:23]} Rad8 {[%emt 0:01:15]} 27. Bd6 {[%emt 0:07:03]} Qa7 {[%emt 0:02:43]} 28. Qe5 {[%emt 0:05:32]} Bxd6 {[%emt 0:00:59]} 29. Nxd6 {[%emt 0:02:43]} g6 {[%emt 0:01:42]} 30. Nc4 {[%emt 0:05:43]} Rde8 {[%emt 0:05:16]} 31. Qc3 {[%emt 0:01:10]} Rb8 {[%emt 0:05:09]} 32. h3 {[%emt 0:01:27]} Qf7 {[%emt 0:02:56]} 33. Ne5 {[%emt 0:02:35]} Qxb3 {[%emt 0:01:08]} 34. Qxb3+ {[%emt 0:00:13]} Rxb3 {[%emt 0:00:07]} 35. Rxc5 {[%emt 0:00:15]} Rb7 {[%emt 0:01:11]} 36. Rdc1 {[%emt 0:02:04]} Nd7 {[%emt 0:02:04]} 1/2-1/2

[Event "55th Biel Festival MTO 2022"]
[Site "Biel"]
[Date "2022.07.15"]
[Round "2.31"]
[White "Aydin Gulenay"]
[Black "Seul, Georg"]
[Result "1/2-1/2"]
[ECO "B13"]
[WhiteElo "2100"]
[BlackElo "2367"]
[Annotator "ChessBase"]
[PlyCount "64"]
[EventDate "2022.07.13"]
[EventType "swiss"]
[EventCountry "SUI"]
[SourceTitle "playchess.com"]
[Source "ChessBase"]
[SourceQuality "1"]
[TimeControl "40/5400+30:1800+30"]

1. e4 {[%emt 0:00:00]} d5 {[%emt 0:00:09]} 2. d4 {[%emt 0:00:18]} c6 {[%emt 0:00:10]} 3. exd5 {[%emt 0:00:07]} cxd5 {[%emt 0:00:06]} 4. Bd3 {[%emt 0:00:10]} Nf6 {[%emt 0:00:17]} 5. c3 {[%emt 0:00:19]} Bg4 {[%emt 0:00:16]} 6. Qb3 {[%emt 0:00:18]} Qc7 {[%emt 0:00:22]} 7. h3 {[%emt 0:00:24]} Bd7 {[%emt 0:00:35]} 8. Nf3 {[%emt 0:00:24]} Nc6 {[%emt 0:00:29]} 9. O-O {[%emt 0:00:23]} e6 {[%emt 0:00:20]} 10. Re1 {[%emt 0:00:53]} Bd6 {[%emt 0:00:43]} 11. Qd1 {[%emt 0:00:51]} O-O {[%emt 0:01:47]} 12. Qe2 {[%emt 0:01:54]} Be8 {[%emt 0:13:03]} 13. Nbd2 {[%emt 0:09:23]} Nh5 {[%emt 0:23:39]} 14. Bxh7+ {[%emt 0:03:29]} Kxh7 {[%emt 0:00:27]} 15. Ng5+ {[%emt 0:00:07]} Kh6 {[%emt 0:19:27]} 16. Ndf3 {[%emt 0:39:45]} Bf4 {[%emt 0:01:28]} 17. Bxf4 {[%emt 0:01:58]} Qxf4 {[%emt 0:22:12]} 18. g3 {[%emt 0:01:46]} Nxg3 {[%emt 0:00:06]} 19. fxg3 {[%emt 0:00:06]} Qxg3+ {[%emt 0:00:08]} 20. Kh1 {[%emt 0:01:00]} g6 {[%emt 0:00:55]} 21. Rg1 {[%emt 0:02:24]} Qd6 {[%emt 0:00:13]} 22. Raf1 {[%emt 0:07:57]} Kg7 {[%emt 0:00:34]} 23. Ne5 {[%emt 0:15:48]} Ne7 {[%emt 0:03:02]} 24. Qh5 {[%emt 0:03:07]} gxh5 {[%emt 0:01:40]} 25. Ngxf7+ {[%emt 0:00:39]} Kh7 {[%emt 0:00:23]} 26. Nxd6 {[%emt 0:01:45]} Bg6 {[%emt 0:03:08]} 27. Nxg6 {[%emt 0:00:48]} Rxf1 {[%emt 0:02:15]} 28. Rxf1 {[%emt 0:00:04]} Kxg6 {[%emt 0:00:05]} 29. Rg1+ {[%emt 0:02:41]} Kf6 {[%emt 0:00:28]} 30. Rf1+ {[%emt 0:00:03]} Kg6 {[%emt 0:01:24]} 31. Rg1+ {[%emt 0:00:32]} Kf6 {[%emt 0:00:04]} 32. Rf1+ {[%emt 0:00:03]} Kg6 {[%emt 0:00:10]} 1/2-1/2

[Event "55th Biel Festival MTO 2022"]
[Site "Biel"]
[Date "2022.07.15"]
[Round "2.32"]
[White "Hugentobler Patrick"]
[Black "Raja Harshit"]
[Result "0-1"]
[ECO "B23"]
[WhiteElo "2148"]
[BlackElo "2477"]
[Annotator "ChessBase"]
[PlyCount "48"]
[EventDate "2022.07.13"]
[EventType "swiss"]
[EventCountry "SUI"]
[SourceTitle "playchess.com"]
[Source "ChessBase"]
[SourceQuality "1"]
[TimeControl "40/5400+30:1800+30"]

1. e4 {[%emt 0:00:06]} c5 {[%emt 0:00:35]} 2. Nc3 {[%emt 0:00:11]} d6 {[%emt 0:00:19]} 3. f4 {[%emt 0:00:13]} g6 {[%emt 0:00:17]} 4. Nf3 {[%emt 0:00:19]} Bg7 {[%emt 0:00:18]} 5. Bc4 {[%emt 0:00:12]} Nc6 {[%emt 0:01:15]} 6. O-O {[%emt 0:00:22]} Nf6 {[%emt 0:04:45]} 7. d3 {[%emt 0:00:48]} O-O {[%emt 0:02:28]} 8. Qe1 {[%emt 0:01:21]} Nd4 {[%emt 0:01:36]} 9. Nxd4 {[%emt 0:04:30]} cxd4 {[%emt 0:01:23]} 10. Ne2 {[%emt 0:05:14]} d5 {[%emt 0:02:45]} 11. exd5 {[%emt 0:03:52]} Nxd5 {[%emt 0:00:25]} 12. Bxd5 {[%emt 0:10:54]} Qxd5 {[%emt 0:00:15]} 13. Ng3 {[%emt 0:02:25]} f5 {[%emt 0:04:36]} 14. Qxe7 {[%emt 0:08:32]} Be6 {[%emt 0:05:54]} 15. Bd2 {[%emt 0:02:56]} Rac8 {[%emt 0:04:57]} 16. c4 {[%emt 0:11:58]} dxc3 {[%emt 0:00:36]} 17. Bxc3 {[%emt 0:00:19]} Rf7 {[%emt 0:03:38]} 18. Qa3 {[%emt 0:08:05]} Bf8 {[%emt 0:02:33]} 19. Qa4 {[%emt 0:02:42]} Qxd3 {[%emt 0:01:59]} 20. Kh1 {[%emt 0:03:13]} b5 {[%emt 0:02:16]} 21. Qd4 {[%emt 0:01:15]} Qxd4 {[%emt 0:00:41]} 22. Bxd4 {[%emt 0:00:02]} Rd7 {[%emt 0:00:30]} 23. Be5 {[%emt 0:13:49]} Rc2 {[%emt 0:00:17]} 24. Rfd1 {[%emt 0:01:07]} Bd5 {[%emt 0:00:38]} 0-1

[Event "55th Biel Festival MTO 2022"]
[Site "Biel"]
[Date "2022.07.15"]
[Round "2.33"]
[White "Licznerski Lukasz"]
[Black "Jaksland Tim"]
[Result "1-0"]
[ECO "C91"]
[WhiteElo "2451"]
[BlackElo "2149"]
[Annotator "ChessBase"]
[PlyCount "143"]
[EventDate "2022.07.13"]
[EventType "swiss"]
[EventCountry "SUI"]
[SourceTitle "playchess.com"]
[Source "ChessBase"]
[SourceQuality "1"]
[TimeControl "40/5400+30:1800+30"]

1. e4 {[%emt 0:00:15]} e5 {[%emt 0:00:16]} 2. Nf3 {[%emt 0:00:06]} Nc6 {[%emt 0:00:05]} 3. Bb5 {[%emt 0:00:12]} a6 {[%emt 0:00:06]} 4. Ba4 {[%emt 0:00:17]} Nf6 {[%emt 0:00:11]} 5. O-O {[%emt 0:00:36]} Be7 {[%emt 0:00:12]} 6. Re1 {[%emt 0:00:09]} b5 {[%emt 0:00:47]} 7. Bb3 {[%emt 0:00:27]} d6 {[%emt 0:00:16]} 8. c3 {[%emt 0:00:24]} O-O {[%emt 0:00:33]} 9. d4 {[%emt 0:01:08]} Bg4 {[%emt 0:01:58]} 10. d5 {[%emt 0:00:03]} Na5 {[%emt 0:02:15]} 11. Bc2 {[%emt 0:02:30]} Qc8 {[%emt 0:00:54]} 12. Nbd2 {[%emt 0:09:00]} c6 {[%emt 0:01:05]} 13. h3 {[%emt 0:06:43]} Bd7 {[%emt 0:00:59]} 14. dxc6 {[%emt 0:00:10]} Qxc6 {[%emt 0:02:18]} 15. Nf1 {[%emt 0:00:19]} Rfc8 {[%emt 0:08:53]} 16. Bd3 {[%emt 0:09:03]} h6 {[%emt 0:07:45]} 17. Ng3 {[%emt 0:00:36]} Nb7 {[%emt 0:17:36]} 18. Nh4 {[%emt 0:01:56]} Nc5 {[%emt 0:03:57]} 19. Nhf5 {[%emt 0:00:49]} Bf8 {[%emt 0:01:15]} 20. Bc2 {[%emt 0:01:20]} Be6 {[%emt 0:07:13]} 21. Qf3 {[%emt 0:05:18]} Ncd7 {[%emt 0:01:13]} 22. Ne3 {[%emt 0:14:15]} d5 {[%emt 0:10:34]} 23. exd5 {[%emt 0:01:17]} Nxd5 {[%emt 0:02:26]} 24. Rd1 {[%emt 0:12:25]} N5f6 {[%emt 0:07:44]} 25. Qxc6 {[%emt 0:12:06]} Rxc6 {[%emt 0:00:06]} 26. Nef5 {[%emt 0:00:17]} Rb8 {[%emt 0:02:49]} 27. Be3 {[%emt 0:08:34]} Rc7 {[%emt 0:08:01]} 28. Bb3 {[%emt 0:01:38]} Nc5 {[%emt 0:03:50]} 29. Bxc5 {[%emt 0:01:05]} Bxc5 {[%emt 0:01:14]} 30. Bxe6 {[%emt 0:00:02]} fxe6 {[%emt 0:00:21]} 31. Nd6 {[%emt 0:00:03]} Kf8 {[%emt 0:02:11]} 32. a3 {[%emt 0:01:22]} Ke7 {[%emt 0:01:23]} 33. Nde4 {[%emt 0:00:02]} Bb6 {[%emt 0:02:14]} 34. Rd2 {[%emt 0:00:02]} Rd7 {[%emt 0:00:51]} 35. Rxd7+ {[%emt 0:00:51]} Kxd7 {[%emt 0:00:16]} 36. Rd1+ {[%emt 0:01:04]} Ke7 {[%emt 0:00:05]} 37. Kf1 {[%emt 0:00:03]} Rb7 {[%emt 0:01:19]} 38. Ke2 {[%emt 0:03:48]} Rd7 {[%emt 0:00:42]} 39. Rxd7+ {[%emt 0:00:44]} Kxd7 {[%emt 0:00:07]} 40. Kd3 {[%emt 0:03:33]} Nd5 {[%emt 0:02:52]} 41. Ne2 {[%emt 0:30:46]} Kc6 {[%emt 0:09:37]} 42. c4 {[%emt 0:00:00]} Nf6 {[%emt 0:04:51]} 43. N2c3 {[%emt 0:00:00]} Bd4 {[%emt 0:01:07]} 44. cxb5+ {[%emt 0:00:00]} axb5 {[%emt 0:00:07]} 45. b3 {[%emt 0:00:00]} Nd5 {[%emt 0:07:17]} 46. Ne2 {[%emt 0:00:00]} Bb6 {[%emt 0:00:55]} 47. g3 {[%emt 0:00:00]} Nf6 {[%emt 0:03:38]} 48. f3 {[%emt 0:00:00]} Nd5 {[%emt 0:00:22]} 49. N2c3 {[%emt 0:01:36]} b4 {[%emt 0:01:24]} 50. axb4 {[%emt 0:00:15]} Nxb4+ {[%emt 0:00:04]} 51. Kc4 {[%emt 0:00:42]} Nc2 {[%emt 0:00:31]} 52. b4 {[%emt 0:00:17]} Ne3+ {[%emt 0:01:22]} 53. Kd3 {[%emt 0:00:25]} Nd5 {[%emt 0:00:12]} 54. Kc4 {[%emt 0:01:39]} Nf6 {[%emt 0:03:49]} 55. b5+ {[%emt 0:00:37]} Kc7 {[%emt 0:00:26]} 56. Nc5 {[%emt 0:00:53]} Kd6 {[%emt 0:00:33]} 57. N3e4+ {[%emt 0:00:31]} Nxe4 {[%emt 0:01:55]} 58. Nxe4+ {[%emt 0:00:05]} Kc7 {[%emt 0:00:12]} 59. Nc5 {[%emt 0:03:11]} Kd6 {[%emt 0:00:12]} 60. Ne4+ {[%emt 0:00:02]} Kc7 {[%emt 0:00:05]} 61. g4 {[%emt 0:01:45]} Bg1 {[%emt 0:00:57]} 62. Kb4 {[%emt 0:00:49]} Bb6 {[%emt 0:00:15]} 63. Nd2 {[%emt 0:01:58]} Bf2 {[%emt 0:00:29]} 64. Nc4 {[%emt 0:00:04]} Be1+ {[%emt 0:01:01]} 65. Kb3 {[%emt 0:00:01]} Bg3 {[%emt 0:00:19]} 66. Kc3 {[%emt 0:00:03]} Kd7 {[%emt 0:02:03]} 67. Kd3 {[%emt 0:00:08]} Kc7 {[%emt 0:00:06]} 68. Ke4 {[%emt 0:00:05]} Bh2 {[%emt 0:00:10]} 69. h4 {[%emt 0:01:06]} g6 {[%emt 0:00:14]} 70. Nxe5 {[%emt 0:00:36]} g5 {[%emt 0:01:28]} 71. h5 {[%emt 0:00:27]} Kd6 {[%emt 0:00:42]} 72. b6 {[%emt 0:00:51]} 1-0